{"text_format":"1","workbook":"xlsx","n_sheets":3,"sheets":["MENU","PUBLIC.boxi","AIO.REF.fastBoxi"],"not_rendered":{"charts":0,"images":11,"macros":1,"external_links":0,"defined_names":1,"comments":0,"pivot_tables":0},"unopened":[],"bounds":{"document_bytes":16777216,"sheet_cells":100000,"rows_first":2000,"rows_last":500,"rows_between":2000,"halvings":0,"cell_chars":16384,"cell_head_chars":4096},"cells_cut":0,"cells_raw":0,"read":"whole","date_system":"1900"}

{"sheet":"MENU","index":0,"n_rows":0,"n_cols":0,"rows_kept":0,"cut":false,"hidden":false,"merged":[]}

{"sheet":"PUBLIC.boxi","index":1,"n_rows":10,"n_cols":6,"rows_kept":10,"cut":false,"hidden":false,"merged":[]}
[]
["VIDEO_DESCRIPTIVE_TEXTUAL_LABEL","HYPERLINK","UID","TEXT_VERSION_HYPERLINK","TEXT_VERSION_FORMULA","ACTIVE_VERSION_URL_HYPERLINK"]
["clip Patrick Bet David on Netflix Obama produced \"Leave The World Behing\"",{"$f":"HYPERLINK(_xlfn.CONCAT(NETWORK_URL_boxicube,Table_PUBLIC.boxi[[#This Row],[UID]]),IF(LEN(Table_PUBLIC.boxi[[#This Row],[UID]])=8,_xlfn.CONCAT(\"PLAYLIST: \",Table_PUBLIC.boxi[[#This Row],[VIDEO_DESCRIPTIVE_TEXTUAL_LABEL]]),Table_PUBLIC.boxi[[#This Row],[VIDEO_DESCRIPTIVE_TEXTUAL_LABEL]]))","v":"clip Patrick Bet David on Netflix Obama produced \"Leave The World Behing\""},"9GOJH13b#!aG9tZV92aWRlby02Mzc5NA==",{"$f":"TEXT(Table_PUBLIC.boxi[[#This Row],[ACTIVE_VERSION_URL_HYPERLINK]],)","v":"https://video.boxicube.com/vs/sharing/9GOJH13b#!aG9tZV92aWRlby02Mzc5NA=="},{"$f":"_xlfn.FORMULATEXT(Table_PUBLIC.boxi[[#This Row],[HYPERLINK]])","v":"=HYPERLINK(CONCAT(NETWORK_URL_boxicube,[@UID]),IF(LEN([@UID])=8,CONCAT(\"PLAYLIST: \",[@[VIDEO_DESCRIPTIVE_TEXTUAL_LABEL]]),[@[VIDEO_DESCRIPTIVE_TEXTUAL_LABEL]]))"},{"$f":"HYPERLINK(_xlfn.CONCAT(NETWORK_URL_boxicube,Table_PUBLIC.boxi[[#This Row],[UID]]))","v":"https://video.boxicube.com/vs/sharing/9GOJH13b#!aG9tZV92aWRlby02Mzc5NA=="}]
["[Dr.Stangelove]~Fluoride Discussion",{"$f":"HYPERLINK(_xlfn.CONCAT(NETWORK_URL_boxicube,Table_PUBLIC.boxi[[#This Row],[UID]]),IF(LEN(Table_PUBLIC.boxi[[#This Row],[UID]])=8,_xlfn.CONCAT(\"PLAYLIST: \",Table_PUBLIC.boxi[[#This Row],[VIDEO_DESCRIPTIVE_TEXTUAL_LABEL]]),Table_PUBLIC.boxi[[#This Row],[VIDEO_DESCRIPTIVE_TEXTUAL_LABEL]]))","v":"[Dr.Stangelove]~Fluoride Discussion"},"9GOJH13b#!aG9tZV92aWRlby02Mzc0Mg==",{"$f":"TEXT(Table_PUBLIC.boxi[[#This Row],[ACTIVE_VERSION_URL_HYPERLINK]],)","v":"https://video.boxicube.com/vs/sharing/9GOJH13b#!aG9tZV92aWRlby02Mzc0Mg=="},{"$f":"_xlfn.FORMULATEXT(Table_PUBLIC.boxi[[#This Row],[HYPERLINK]])","v":"=HYPERLINK(CONCAT(NETWORK_URL_boxicube,[@UID]),IF(LEN([@UID])=8,CONCAT(\"PLAYLIST: \",[@[VIDEO_DESCRIPTIVE_TEXTUAL_LABEL]]),[@[VIDEO_DESCRIPTIVE_TEXTUAL_LABEL]]))"},{"$f":"HYPERLINK(_xlfn.CONCAT(NETWORK_URL_boxicube,Table_PUBLIC.boxi[[#This Row],[UID]]))","v":"https://video.boxicube.com/vs/sharing/9GOJH13b#!aG9tZV92aWRlby02Mzc0Mg=="}]
["CeasefireSongIsraelPalestineTLO",{"$f":"HYPERLINK(_xlfn.CONCAT(NETWORK_URL_boxicube,Table_PUBLIC.boxi[[#This Row],[UID]]),IF(LEN(Table_PUBLIC.boxi[[#This Row],[UID]])=8,_xlfn.CONCAT(\"PLAYLIST: \",Table_PUBLIC.boxi[[#This Row],[VIDEO_DESCRIPTIVE_TEXTUAL_LABEL]]),Table_PUBLIC.boxi[[#This Row],[VIDEO_DESCRIPTIVE_TEXTUAL_LABEL]]))","v":"CeasefireSongIsraelPalestineTLO"},"9GOJH13b#!aG9tZV92aWRlby01NTg0Mg==",{"$f":"TEXT(Table_PUBLIC.boxi[[#This Row],[ACTIVE_VERSION_URL_HYPERLINK]],)","v":"https://video.boxicube.com/vs/sharing/9GOJH13b#!aG9tZV92aWRlby01NTg0Mg=="},{"$f":"_xlfn.FORMULATEXT(Table_PUBLIC.boxi[[#This Row],[HYPERLINK]])","v":"=HYPERLINK(CONCAT(NETWORK_URL_boxicube,[@UID]),IF(LEN([@UID])=8,CONCAT(\"PLAYLIST: \",[@[VIDEO_DESCRIPTIVE_TEXTUAL_LABEL]]),[@[VIDEO_DESCRIPTIVE_TEXTUAL_LABEL]]))"},{"$f":"HYPERLINK(_xlfn.CONCAT(NETWORK_URL_boxicube,Table_PUBLIC.boxi[[#This Row],[UID]]))","v":"https://video.boxicube.com/vs/sharing/9GOJH13b#!aG9tZV92aWRlby01NTg0Mg=="}]
["HightlightSection~Venetians schemes to corrupt Religions",{"$f":"HYPERLINK(_xlfn.CONCAT(NETWORK_URL_boxicube,Table_PUBLIC.boxi[[#This Row],[UID]]),IF(LEN(Table_PUBLIC.boxi[[#This Row],[UID]])=8,_xlfn.CONCAT(\"PLAYLIST: \",Table_PUBLIC.boxi[[#This Row],[VIDEO_DESCRIPTIVE_TEXTUAL_LABEL]]),Table_PUBLIC.boxi[[#This Row],[VIDEO_DESCRIPTIVE_TEXTUAL_LABEL]]))","v":"HightlightSection~Venetians schemes to corrupt Religions"},"9GOJH13b#!aG9tZV92aWRlby01NTg2MA==",{"$f":"TEXT(Table_PUBLIC.boxi[[#This Row],[ACTIVE_VERSION_URL_HYPERLINK]],)","v":"https://video.boxicube.com/vs/sharing/9GOJH13b#!aG9tZV92aWRlby01NTg2MA=="},{"$f":"_xlfn.FORMULATEXT(Table_PUBLIC.boxi[[#This Row],[HYPERLINK]])","v":"=HYPERLINK(CONCAT(NETWORK_URL_boxicube,[@UID]),IF(LEN([@UID])=8,CONCAT(\"PLAYLIST: \",[@[VIDEO_DESCRIPTIVE_TEXTUAL_LABEL]]),[@[VIDEO_DESCRIPTIVE_TEXTUAL_LABEL]]))"},{"$f":"HYPERLINK(_xlfn.CONCAT(NETWORK_URL_boxicube,Table_PUBLIC.boxi[[#This Row],[UID]]))","v":"https://video.boxicube.com/vs/sharing/9GOJH13b#!aG9tZV92aWRlby01NTg2MA=="}]
["GerryRose.TheProblemWithPopulism(part1)",{"$f":"HYPERLINK(_xlfn.CONCAT(NETWORK_URL_boxicube,Table_PUBLIC.boxi[[#This Row],[UID]]),IF(LEN(Table_PUBLIC.boxi[[#This Row],[UID]])=8,_xlfn.CONCAT(\"PLAYLIST: \",Table_PUBLIC.boxi[[#This Row],[VIDEO_DESCRIPTIVE_TEXTUAL_LABEL]]),Table_PUBLIC.boxi[[#This Row],[VIDEO_DESCRIPTIVE_TEXTUAL_LABEL]]))","v":"GerryRose.TheProblemWithPopulism(part1)"},"9GOJH13b#!aG9tZV92aWRlby01NTg0Mw==",{"$f":"TEXT(Table_PUBLIC.boxi[[#This Row],[ACTIVE_VERSION_URL_HYPERLINK]],)","v":"https://video.boxicube.com/vs/sharing/9GOJH13b#!aG9tZV92aWRlby01NTg0Mw=="},{"$f":"_xlfn.FORMULATEXT(Table_PUBLIC.boxi[[#This Row],[HYPERLINK]])","v":"=HYPERLINK(CONCAT(NETWORK_URL_boxicube,[@UID]),IF(LEN([@UID])=8,CONCAT(\"PLAYLIST: \",[@[VIDEO_DESCRIPTIVE_TEXTUAL_LABEL]]),[@[VIDEO_DESCRIPTIVE_TEXTUAL_LABEL]]))"},{"$f":"HYPERLINK(_xlfn.CONCAT(NETWORK_URL_boxicube,Table_PUBLIC.boxi[[#This Row],[UID]]))","v":"https://video.boxicube.com/vs/sharing/9GOJH13b#!aG9tZV92aWRlby01NTg0Mw=="}]
["GerryRose.TheProblemWithPopulism(part2)",{"$f":"HYPERLINK(_xlfn.CONCAT(NETWORK_URL_boxicube,Table_PUBLIC.boxi[[#This Row],[UID]]),IF(LEN(Table_PUBLIC.boxi[[#This Row],[UID]])=8,_xlfn.CONCAT(\"PLAYLIST: \",Table_PUBLIC.boxi[[#This Row],[VIDEO_DESCRIPTIVE_TEXTUAL_LABEL]]),Table_PUBLIC.boxi[[#This Row],[VIDEO_DESCRIPTIVE_TEXTUAL_LABEL]]))","v":"GerryRose.TheProblemWithPopulism(part2)"},"9GOJH13b#!aG9tZV92aWRlby01NTg0NA==",{"$f":"TEXT(Table_PUBLIC.boxi[[#This Row],[ACTIVE_VERSION_URL_HYPERLINK]],)","v":"https://video.boxicube.com/vs/sharing/9GOJH13b#!aG9tZV92aWRlby01NTg0NA=="},{"$f":"_xlfn.FORMULATEXT(Table_PUBLIC.boxi[[#This Row],[HYPERLINK]])","v":"=HYPERLINK(CONCAT(NETWORK_URL_boxicube,[@UID]),IF(LEN([@UID])=8,CONCAT(\"PLAYLIST: \",[@[VIDEO_DESCRIPTIVE_TEXTUAL_LABEL]]),[@[VIDEO_DESCRIPTIVE_TEXTUAL_LABEL]]))"},{"$f":"HYPERLINK(_xlfn.CONCAT(NETWORK_URL_boxicube,Table_PUBLIC.boxi[[#This Row],[UID]]))","v":"https://video.boxicube.com/vs/sharing/9GOJH13b#!aG9tZV92aWRlby01NTg0NA=="}]
["The Putin Interviews",{"$f":"HYPERLINK(_xlfn.CONCAT(NETWORK_URL_boxicube,Table_PUBLIC.boxi[[#This Row],[UID]]),IF(LEN(Table_PUBLIC.boxi[[#This Row],[UID]])=8,_xlfn.CONCAT(\"PLAYLIST: \",Table_PUBLIC.boxi[[#This Row],[VIDEO_DESCRIPTIVE_TEXTUAL_LABEL]]),Table_PUBLIC.boxi[[#This Row],[VIDEO_DESCRIPTIVE_TEXTUAL_LABEL]]))","v":"PLAYLIST: The Putin Interviews"},"O5FQGawg",{"$f":"TEXT(Table_PUBLIC.boxi[[#This Row],[ACTIVE_VERSION_URL_HYPERLINK]],)","v":"https://video.boxicube.com/vs/sharing/O5FQGawg"},{"$f":"_xlfn.FORMULATEXT(Table_PUBLIC.boxi[[#This Row],[HYPERLINK]])","v":"=HYPERLINK(CONCAT(NETWORK_URL_boxicube,[@UID]),IF(LEN([@UID])=8,CONCAT(\"PLAYLIST: \",[@[VIDEO_DESCRIPTIVE_TEXTUAL_LABEL]]),[@[VIDEO_DESCRIPTIVE_TEXTUAL_LABEL]]))"},{"$f":"HYPERLINK(_xlfn.CONCAT(NETWORK_URL_boxicube,Table_PUBLIC.boxi[[#This Row],[UID]]))","v":"https://video.boxicube.com/vs/sharing/O5FQGawg"}]
["Путин",{"$f":"HYPERLINK(_xlfn.CONCAT(NETWORK_URL_boxicube,Table_PUBLIC.boxi[[#This Row],[UID]]),IF(LEN(Table_PUBLIC.boxi[[#This Row],[UID]])=8,_xlfn.CONCAT(\"PLAYLIST: \",Table_PUBLIC.boxi[[#This Row],[VIDEO_DESCRIPTIVE_TEXTUAL_LABEL]]),Table_PUBLIC.boxi[[#This Row],[VIDEO_DESCRIPTIVE_TEXTUAL_LABEL]]))","v":"PLAYLIST: Путин"},"D78c8C6R",{"$f":"TEXT(Table_PUBLIC.boxi[[#This Row],[ACTIVE_VERSION_URL_HYPERLINK]],)","v":"https://video.boxicube.com/vs/sharing/D78c8C6R"},{"$f":"_xlfn.FORMULATEXT(Table_PUBLIC.boxi[[#This Row],[HYPERLINK]])","v":"=HYPERLINK(CONCAT(NETWORK_URL_boxicube,[@UID]),IF(LEN([@UID])=8,CONCAT(\"PLAYLIST: \",[@[VIDEO_DESCRIPTIVE_TEXTUAL_LABEL]]),[@[VIDEO_DESCRIPTIVE_TEXTUAL_LABEL]]))"},{"$f":"HYPERLINK(_xlfn.CONCAT(NETWORK_URL_boxicube,Table_PUBLIC.boxi[[#This Row],[UID]]))","v":"https://video.boxicube.com/vs/sharing/D78c8C6R"}]

{"sheet":"AIO.REF.fastBoxi","index":2,"n_rows":15,"n_cols":2,"rows_kept":15,"cut":false,"hidden":true,"merged":[]}
[]
["https://video.boxicube.com/vs/sharing/"]
[]
["A. network address [http://video.boxicube.com]","https://video.boxicube.com"]
["B. URL [vs/sharing]","/vs/sharing"]
["C. file path | ID Base64 [eg. 9GOJH13b#!aG9tZV92aWRlby02Mzc4Ng==]","/xVIDEOxBASE64xIDxNUMx"]
[]
["Constuctions"]
[{"$f":"_xlfn.CONCAT(B4,B5)","v":"https://video.boxicube.com/vs/sharing"},{"$f":"_xlfn.FORMULATEXT(A9)","v":"=CONCAT(B4,B5)"}]
[{"$f":"_xlfn.CONCAT(A9,B6)","v":"https://video.boxicube.com/vs/sharing/xVIDEOxBASE64xIDxNUMx"},{"$f":"_xlfn.FORMULATEXT(A10)","v":"=CONCAT(A9,B6)"}]
[]
[]
[]
[]
["access scheme or protocol"]